bitfinex/quotes_BTCUSD_20230114
["timestamp","ask_amount","ask_price","bid_price","bid_amount"]
[1673684165111,4.12408063,20917.0,20916.0,0.00821096]
[1673684165361,3.70417635,20917.0,20916.0,0.00821096]
[1673684165609,3.51402723,20917.0,20916.0,0.00821096]
[1673684165862,3.86402723,20917.0,20916.0,0.00821096]
[1673684166110,3.85762908,20917.0,20916.0,0.00821096]
[1673684166369,4.0269504,20917.0,20916.0,0.00821096]
[1673684166626,3.85762908,20917.0,20916.0,0.00821096]
[1673684166879,3.74146346,20917.0,20916.0,0.00821096]
[1673684167119,3.13538346,20917.0,20916.0,0.00821096]
[1673684167381,2.35730346,20917.0,20916.0,0.00821096]
[1673684167883,2.00730346,20917.0,20916.0,0.00821096]
[1673684168380,1.52922346,20917.0,20916.0,0.00821096]
[1673684169147,1.0094488,20917.0,20916.0,0.25412072]
[1673684169407,0.50114296,20917.0,20916.0,0.25412072]
[1673684170414,0.50114296,20917.0,20916.0,0.78638696]
[1673684170670,0.50114296,20917.0,20916.0,1.09740308]
[1673684171412,0.36514296,20917.0,20916.0,1.09740308]
[1673684171655,0.37614296,20917.0,20916.0,1.11140308]
[1673684171906,0.37614296,20917.0,20916.0,1.1114665]
[1673684172412,0.36514296,20917.0,20916.0,0.96940308]
[1673684172928,0.37914296,20917.0,20916.0,0.9834665]
[1673684173172,0.37914296,20917.0,20916.0,0.9694665]
[1673684173173,0.36514296,20917.0,20916.0,0.9694665]
[1673684173420,0.36514296,20917.0,20916.0,0.9834665]
[1673684173421,0.37914296,20917.0,20916.0,0.9834665]
[1673684173666,0.37914296,20917.0,20916.0,0.89816308]
[1673684173929,0.37914296,20917.0,20916.0,0.42006108]
[1673684174174,0.37914296,20917.0,20916.0,0.20522708]
[1673684174422,0.36514296,20917.0,20916.0,0.19122708]
[1673684174668,0.37914296,20917.0,20916.0,0.20522708]
[1673684174919,0.36514296,20917.0,20916.0,0.19122708]
[1673684175171,0.38114296,20917.0,20916.0,0.42006108]
[1673684175426,0.38114296,20917.0,20916.0,0.89816308]
[1673684177208,0.38114296,20917.0,20916.0,0.42006108]
[1673684177457,0.38114296,20917.0,20916.0,0.20522708]
[1673684179192,0.38114296,20917.0,20916.0,0.02173476]
[1673684179944,0.5558621,20917.0,20916.0,0.02173476]
[1673684180688,0.8558621,20917.0,20916.0,0.02173476]
[1673684181188,1.1769881,20917.0,20916.0,0.02173476]
[1673684181436,0.8558621,20917.0,20916.0,0.02173476]
[1673684181687,0.49740184,20916.0,20915.0,0.01619448]
[1673684181939,0.79740184,20916.0,20915.0,0.01619448]
[1673684182189,1.4426362,20916.0,20915.0,0.01619448]
[1673684182444,1.62825741,20916.0,20915.0,0.01619448]
[1673684182688,1.71665797,20916.0,20915.0,0.01619448]
[1673684182929,1.8926362,20916.0,20915.0,0.01619448]
[1673684183185,2.37760944,20916.0,20915.0,0.01619448]
[1673684183447,2.35045048,20916.0,20915.0,0.01619448]
[1673684183692,2.33545048,20916.0,20915.0,0.01619448]
[1673684183986,2.41545048,20916.0,20915.0,0.01619448]
[1673684184477,2.33545048,20916.0,20915.0,0.01619448]
[1673684184764,2.63006188,20916.0,20915.0,0.01619448]
[1673684185014,2.90026003,20916.0,20915.0,0.01619448]
[1673684185264,2.68564863,20916.0,20915.0,0.01619448]
[1673684185511,2.54325048,20916.0,20915.0,0.01619448]
[1673684187519,2.41525048,20916.0,20915.0,0.01619448]
[1673684188512,2.11525048,20916.0,20915.0,0.01619448]
[1673684189006,1.8004362,20916.0,20915.0,0.01619448]
[1673684189252,2.20152775,20916.0,20915.0,0.01619448]
[1673684189501,2.38834203,20916.0,20915.0,0.01619448]
[1673684190483,2.38834203,20916.0,20915.0,0.01119448]
[1673684191224,2.6785155,20916.0,20915.0,0.01119448]
[1673684192531,1.81645697,20916.0,20915.0,0.28716043]
[1673684192754,0.56722897,20916.0,20915.0,0.09643448]
[1673684193222,0.48722897,20916.0,20915.0,0.09643448]
[1673684193464,0.33358167,20916.0,20915.0,0.26756893]
[1673684193706,0.46958167,20916.0,20915.0,0.26750565]
[1673684194001,0.33358167,20916.0,20915.0,0.26750565]
[1673684194237,0.41358167,20916.0,20915.0,0.48235265]
[1673684194472,0.41358167,20916.0,20915.0,0.48241593]
[1673684194742,0.41358167,20916.0,20915.0,0.48235265]
[1673684194995,0.41358167,20916.0,20915.0,0.39711265]
[1673684195230,0.41358167,20916.0,20915.0,0.18226565]
[1673684195476,0.33358167,20916.0,20915.0,0.18226565]
[1673684195722,0.33358167,20916.0,20915.0,0.01119448]
[1673684195723,0.34958167,20916.0,20915.0,0.01119448]
[1673684195976,0.80322514,20916.0,20915.0,0.01119448]
[1673684196206,1.60245314,20916.0,20915.0,0.01119448]
[1673684196697,1.59845314,20916.0,20915.0,0.01119448]
[1673684196920,1.94845314,20916.0,20915.0,0.01119448]
[1673684197164,2.05545314,20916.0,20915.0,0.01119448]
[1673684197407,1.88980967,20916.0,20915.0,0.01119448]
[1673684197673,2.01780967,20916.0,20915.0,0.01119448]
[1673684198429,2.41262395,20916.0,20915.0,0.01119448]
[1673684198672,2.32562395,20916.0,20915.0,0.01119448]
[1673684198936,2.30456644,20916.0,20915.0,0.01119448]
[1673684199913,2.6030221,20916.0,20915.0,0.01119448]
[1673684200408,2.80298392,20916.0,20915.0,0.01119448]
[1673684200653,2.34577149,20916.0,20915.0,0.01119448]
[1673684202573,2.14580967,20916.0,20915.0,0.01119448]
[1673684203086,2.28820782,20916.0,20915.0,0.01119448]
[1673684203329,3.07712427,20916.0,20915.0,0.01119448]
[1673684204058,2.28820782,20916.0,20915.0,0.01119448]
[1673684204316,2.4531986,20916.0,20915.0,0.01119448]
[1673684205021,2.31080045,20916.0,20915.0,0.01119448]
[1673684205774,2.21080045,20916.0,20915.0,0.01119448]
[1673684212438,2.21080045,20916.0,20915.0,0.01107562]
[1673684213978,1.91080045,20916.0,20915.0,0.01107562]
[1673684214250,2.21080045,20916.0,20915.0,0.01107562]
[1673684214487,1.58967445,20916.0,20915.0,0.01107562]
[1673684214979,1.86080045,20916.0,20915.0,0.01107562]
[1673684215466,1.72580045,20916.0,20915.0,0.01107562]
[1673684215710,2.0031986,20916.0,20915.0,0.01107562]
[1673684216223,1.6820726,20916.0,20915.0,0.01107562]
[1673684216462,0.1,20915.0,20911.0,0.00019]
[1673684216696,0.37331783,20915.0,20911.0,0.34339069]
[1673684216943,0.37331783,20915.0,20912.0,6.329e-05]
[1673684217193,0.1,20914.0,20912.0,6.329e-05]
[1673684218185,0.20820226,20915.0,20912.0,0.31787721]
[1673684218433,0.20820226,20915.0,20912.0,0.96253426]
[1673684218434,0.012,20915.0,20912.0,0.96253426]
[1673684218722,0.007,20914.0,20913.0,0.17963702]
[1673684218973,0.007,20914.0,20913.0,0.32267099]
[1673684219229,0.007,20914.0,20913.0,0.53754399]
[1673684219476,0.18780746,20916.0,20913.0,0.53754399]
[1673684219736,0.18780746,20916.0,20913.0,0.32267099]
[1673684219737,0.007,20915.0,20913.0,0.32267099]
[1673684219973,0.007,20915.0,20913.0,0.53716098]
[1673684220720,0.007,20915.0,20914.0,0.14303397]
[1673684220969,0.18780746,20916.0,20914.0,0.14303397]
[1673684221239,0.08,20914.0,20913.0,0.53716098]
[1673684221490,0.18780746,20916.0,20913.0,0.39412701]
[1673684221769,0.18780746,20916.0,20914.0,0.14324244]
[1673684221770,0.134,20915.0,20914.0,0.14324244]
[1673684221992,0.81324015,20919.0,20914.0,0.35773243]
[1673684222235,0.1410994,20917.0,20915.0,0.19072595]
[1673684222505,0.1410994,20917.0,20914.0,0.14324244]
[1673684222506,0.1410994,20917.0,20914.0,0.35773243]
[1673684222748,0.134,20915.0,20914.0,0.35773243]
[1673684222994,0.134,20915.0,20914.0,0.14324244]
[1673684223253,0.134,20915.0,20914.0,0.35809744]
[1673684223744,0.1410994,20917.0,20914.0,0.54824786]
[1673684223994,0.2760994,20917.0,20914.0,0.33339286]
[1673684224243,0.1410994,20917.0,20914.0,0.33339286]
[1673684224490,0.134,20915.0,20914.0,0.33339286]
[1673684224744,0.1410994,20917.0,20914.0,0.33339286]
[1673684224991,0.2750994,20917.0,20914.0,0.19015042]
[1673684225741,0.2750994,20917.0,20914.0,0.18945042]
[1673684226002,0.17313129,20916.0,20914.0,0.18945042]
[1673684226247,0.17313129,20916.0,20913.0,0.14324244]
[1673684226506,0.35024686,20916.0,20913.0,0.14324244]
[1673684226755,0.35024686,20916.0,20912.0,1.12408693]
[1673684226756,0.17313129,20916.0,20912.0,0.50307887]
[1673684227011,0.48424686,20916.0,20912.0,0.28858888]
[1673684227261,0.35024686,20916.0,20912.0,0.50307887]
[1673684227504,0.43024686,20916.0,20912.0,0.50307887]
[1673684227751,0.35024686,20916.0,20913.0,8.5e-05]
[1673684227993,0.35024686,20916.0,20914.0,6.328e-05]
[1673684227994,0.1,20915.0,20914.0,6.328e-05]
[1673684228246,0.18013129,20916.0,20913.0,0.15783714]
[1673684228498,0.18013129,20916.0,20913.0,0.30107958]
[1673684229249,0.15303879,20915.0,20913.0,0.30107958]
[1673684229502,0.15303879,20915.0,20913.0,0.15783714]
[1673684230237,0.28703879,20915.0,20913.0,0.15783714]
[1673684230492,0.15303879,20915.0,20913.0,0.15783714]
[1673684230995,0.23303879,20915.0,20913.0,0.15783714]
[1673684231229,0.23303879,20915.0,20913.0,0.14475432]
[1673684233917,0.23303879,20915.0,20912.0,0.14324244]
[1673684234155,0.23303879,20915.0,20912.0,0.32772982]
[1673684234690,0.34984077,20915.0,20912.0,0.32772982]
[1673684235204,0.23303879,20915.0,20912.0,0.32772982]
[1673684235934,0.23303879,20915.0,20911.0,0.14324244]
[1673684235935,0.1,20913.0,20911.0,0.14324244]
[1673684236182,0.17711557,20913.0,20910.0,0.54012058]
[1673684236425,0.47711557,20913.0,20910.0,0.32563059]
[1673684236910,0.68107279,20913.0,20910.0,0.15322481]
[1673684237167,0.26514292,20912.0,20910.0,0.00998237]
[1673684237413,0.64334792,20912.0,20910.0,0.00998237]
[1673684238181,0.10702827,20911.0,20910.0,0.00998237]
[1673684238664,0.58524527,20911.0,20910.0,0.00998237]
[1673684238906,0.98524527,20911.0,20910.0,0.00998237]
[1673684239151,0.88524527,20911.0,20910.0,0.00998237]
[1673684239477,0.98524527,20911.0,20910.0,0.00998237]
[1673684239983,1.1288895,20911.0,20910.0,0.00998237]
[1673684240248,0.7408895,20911.0,20910.0,0.00998237]
[1673684240725,0.7288895,20911.0,20910.0,0.00998237]
[1673684240959,0.7358895,20911.0,20910.0,0.00998237]
[1673684241205,1.0358895,20911.0,20910.0,0.00998237]
[1673684241939,1.36703304,20911.0,20910.0,0.00998237]
[1673684242183,1.44703304,20911.0,20910.0,0.00998237]
[1673684242431,1.54703304,20911.0,20910.0,0.00998237]
[1673684242922,1.44703304,20911.0,20910.0,0.00998237]
[1673684243914,1.12590704,20911.0,20910.0,0.00998237]
[1673684244159,1.44703304,20911.0,20910.0,0.00998237]
[1673684244421,1.38637127,20911.0,20910.0,0.00998237]
[1673684244665,1.53116037,20911.0,20910.0,0.00998237]
[1673684244913,1.53875517,20911.0,20910.0,0.00998237]
[1673684246172,1.43875517,20911.0,20910.0,0.01004581]
[1673684246432,0.81762917,20911.0,20910.0,0.00998237]
[1673684246680,1.13875517,20911.0,20910.0,0.00998237]
[1673684247001,1.43875517,20911.0,20910.0,0.00998237]
[1673684247257,1.13875517,20911.0,20910.0,0.00998237]
[1673684247501,1.43875517,20911.0,20910.0,0.00998237]
[1673684249559,0.09991827,20911.0,20910.0,0.47807798]
[1673684249807,0.09991827,20911.0,20910.0,0.50226503]
[1673684251284,0.09991827,20911.0,20910.0,0.41696173]
[1673684251536,0.01991827,20911.0,20910.0,0.41696173]
[1673684251792,0.09991827,20911.0,20910.0,0.20204873]
[1673684253656,0.09991827,20911.0,20910.0,0.20198161]
[1673684253900,0.09991827,20911.0,20910.0,0.97257805]
[1673684254152,0.09991827,20911.0,20910.0,1.4701698]
[1673684254630,0.09991827,20911.0,20910.0,1.585375]
[1673684254631,0.09991827,20911.0,20910.0,1.37088501]
[1673684254882,0.09991827,20911.0,20910.0,1.82873188]
[1673684255140,0.01991827,20911.0,20910.0,1.82873188]
[1673684255394,0.03391827,20911.0,20910.0,1.83873188]
[1673684255642,0.01991827,20911.0,20910.0,1.68541234]
[1673684256131,0.01991827,20911.0,20910.0,1.47088501]
[1673684256379,0.01991827,20911.0,20910.0,1.68541132]
[1673684256858,0.01991827,20911.0,20910.0,1.47088501]
[1673684257121,0.01991827,20911.0,20910.0,1.82873188]
[1673684257594,0.01991827,20911.0,20910.0,1.47088501]
[1673684257849,0.01991827,20911.0,20910.0,1.57387662]
[1673684258333,0.03391827,20911.0,20910.0,1.58387662]
[1673684259184,0.03391827,20911.0,20910.0,1.29781512]
[1673684259435,0.03391827,20911.0,20910.0,1.85466166]
[1673684260425,0.03391827,20911.0,20910.0,1.55466166]
[1673684260678,0.03391827,20911.0,20910.0,1.85466166]
[1673684260920,0.03391827,20911.0,20910.0,2.33186335]
[1673684261409,0.03391827,20911.0,20910.0,2.33192377]
[1673684261651,0.03391827,20911.0,20910.0,2.93112777]
[1673684262140,0.03391827,20911.0,20910.0,2.67394226]
[1673684262392,0.03391827,20911.0,20910.0,1.41723036]
[1673684262646,0.03391827,20911.0,20910.0,1.77472273]
[1673684262893,0.03391827,20911.0,20910.0,2.07472273]
[1673684263373,0.03391827,20911.0,20910.0,1.77472273]
[1673684264096,0.03391827,20911.0,20910.0,2.07472273]
[1673684264589,0.03391827,20911.0,20910.0,1.77472273]
[1673684265884,0.03391827,20911.0,20910.0,2.37392784]
[1673684266129,0.03391827,20911.0,20910.0,1.77473597]
[1673684269563,0.03391827,20911.0,20910.0,1.92415982]
[1673684269821,0.03391827,20911.0,20910.0,1.77473597]
[1673684270875,0.03391827,20911.0,20910.0,2.37392651]
[1673684272386,0.03391827,20911.0,20910.0,2.27392651]
[1673684272628,0.03391827,20911.0,20910.0,1.67464508]
[1673684272876,0.03391827,20911.0,20910.0,1.84304246]
[1673684273128,0.03391827,20911.0,20910.0,1.67464508]
[1673684273384,0.03391827,20911.0,20910.0,1.84976272]
[1673684273596,0.03391827,20911.0,20910.0,1.30106782]
[1673684273850,0.03391827,20911.0,20910.0,1.65848254]
[1673684274094,0.03391827,20911.0,20910.0,1.10263559]
[1673684274334,0.03391827,20911.0,20910.0,1.10384431]
[1673684274862,0.03376114,20911.0,20910.0,1.38976582]
[1673684275603,0.03369952,20911.0,20910.0,1.38976582]
[1673684276081,0.03369952,20911.0,20910.0,1.00019848]
[1673684276591,0.03369952,20911.0,20910.0,1.18031164]
[1673684277083,0.03369952,20911.0,20910.0,1.49475677]
[1673684277363,0.03369952,20911.0,20910.0,1.25485723]
[1673684277853,0.03369952,20911.0,20910.0,1.46929849]
[1673684278341,0.03369952,20911.0,20910.0,1.36929849]
[1673684279064,0.03369952,20911.0,20910.0,1.3576132]
[1673684279317,0.03369952,20911.0,20910.0,1.07169169]
[1673684279556,0.03369952,20911.0,20910.0,1.17169169]
[1673684280297,0.03369952,20911.0,20910.0,1.07169169]
[1673684280537,0.03369952,20911.0,20910.0,1.24853127]
[1673684280780,0.03369952,20911.0,20910.0,1.07169169]
[1673684281058,0.03369952,20911.0,20910.0,1.22353455]
[1673684281531,0.03369952,20911.0,20910.0,1.07169169]
[1673684281778,0.03369952,20911.0,20910.0,1.17169169]
[1673684282263,0.03369952,20911.0,20910.0,2.54818205]
[1673684282531,0.03369952,20911.0,20910.0,2.24818205]
[1673684284462,0.03369952,20911.0,20910.0,2.97643658]
[1673684285274,0.03369952,20911.0,20910.0,2.67643658]
[1673684285519,0.00019,20914.0,20910.0,3.11778487]
[1673684285771,0.00758931,20918.0,20912.0,0.42920561]
[1673684286020,0.00758931,20918.0,20916.0,0.35766913]
[1673684286269,0.00758931,20918.0,20917.0,0.88362795]
[1673684286763,0.00758931,20918.0,20917.0,0.692902]
[1673684287006,0.00758931,20918.0,20917.0,0.83596965]
[1673684287252,0.00758931,20918.0,20917.0,0.99506432]
[1673684287497,0.00758931,20918.0,20917.0,1.2096658]
[1673684287981,0.00758931,20918.0,20917.0,0.99506432]
[1673684288218,0.01058931,20918.0,20917.0,1.13306432]
[1673684288471,0.01058931,20918.0,20917.0,1.28857113]
[1673684288708,0.00758931,20918.0,20917.0,1.35021261]
[1673684288953,0.01058931,20918.0,20917.0,1.43263879]
[1673684289192,0.00710411,20918.0,20917.0,1.07903731]
[1673684289453,0.01010411,20918.0,20917.0,1.57470644]
[1673684289702,0.01010411,20918.0,20917.0,1.87586036]
[1673684289956,0.00710411,20918.0,20917.0,1.15172505]
[1673684290493,0.00710411,20918.0,20917.0,1.43768838]
[1673684290737,0.00710411,20918.0,20917.0,1.91489007]
[1673684291232,0.01010411,20918.0,20917.0,1.76792674]
[1673684291745,0.01310411,20918.0,20917.0,2.20592674]
[1673684291999,0.01310411,20918.0,20917.0,3.1623404]
[1673684292244,0.00710411,20918.0,20917.0,2.65577127]
[1673684292740,0.00710411,20918.0,20917.0,2.96906023]
[1673684293254,0.00710411,20918.0,20917.0,3.22297688]
[1673684293255,0.01010411,20918.0,20917.0,3.22297688]
[1673684294009,0.00710411,20918.0,20917.0,3.39826584]
[1673684294261,0.00710411,20918.0,20917.0,13.39826584]
[1673684294508,4.11e-06,20918.0,20917.0,13.53626584]
[1673684294765,0.00300411,20918.0,20917.0,13.24506023]
[1673684295004,0.00401057,20922.0,20918.0,0.1]
[1673684295257,0.00401057,20922.0,20921.0,0.59983917]
[1673684295501,0.00401057,20922.0,20921.0,2.72577686]
[1673684295737,0.00401057,20922.0,20921.0,2.97577686]
[1673684296236,0.02006073,20922.0,20921.0,3.06156007]
[1673684296503,0.02006073,20922.0,20921.0,3.27563265]
[1673684296978,0.02306073,20922.0,20921.0,3.27580495]
[1673684297221,0.02006073,20922.0,20921.0,2.97580495]
[1673684297476,0.02206073,20922.0,20921.0,3.11480495]
[1673684297723,0.02206073,20922.0,20921.0,2.82918257]
[1673684298230,0.02206073,20922.0,20921.0,3.11480495]
[1673684298467,0.02206073,20922.0,20921.0,3.28845535]
[1673684298719,0.02206073,20922.0,20921.0,2.83141515]
[1673684299228,0.02206073,20922.0,20921.0,3.15776035]
[1673684299725,0.02206073,20922.0,20921.0,2.80073237]
[1673684299983,0.02206073,20922.0,20921.0,3.45776035]
[1673684300225,0.02206073,20922.0,20921.0,3.1574094]
[1673684300463,0.02206073,20922.0,20921.0,3.1656302]
[1673684301207,0.02206073,20922.0,20921.0,3.01225663]
[1673684303160,0.02206073,20922.0,20921.0,3.4554094]
[1673684303941,0.02206073,20922.0,20921.0,3.17013797]
[1673684304200,0.02206073,20922.0,20921.0,12.17013797]
[1673684304701,0.02206073,20922.0,20921.0,12.48342693]
[1673684304976,0.02206073,20922.0,20921.0,13.51096311]
[1673684305229,0.02006073,20922.0,20921.0,14.0335637]
[1673684305479,0.02206073,20922.0,20921.0,13.51096311]
[1673684305721,0.02206073,20922.0,20921.0,13.53758716]
[1673684305977,0.02206073,20922.0,20921.0,13.51096311]
[1673684306255,0.02206073,20922.0,20921.0,12.51096311]
[1673684307965,0.02206073,20922.0,20921.0,12.51096302]
[1673684310237,0.00953521,20926.0,20922.0,0.1]
[1673684310463,0.00953521,20926.0,20925.0,0.35583184]
[1673684310711,0.00953521,20926.0,20925.0,0.90342179]
[1673684310946,0.00953521,20926.0,20925.0,2.47939876]
[1673684311182,0.00953521,20926.0,20925.0,2.4793982]
[1673684311438,0.00953521,20926.0,20925.0,2.7293982]
[1673684312710,0.00953521,20926.0,20925.0,2.72611279]
[1673684312954,0.00953521,20926.0,20925.0,2.58711279]
[1673684313195,0.00953521,20926.0,20925.0,2.88711279]
[1673684313443,0.00453521,20926.0,20925.0,3.02611279]
[1673684314195,0.00453521,20926.0,20925.0,3.31077826]
[1673684314450,0.00453521,20926.0,20925.0,3.31204635]
[1673684314703,0.00453521,20926.0,20925.0,3.02738088]
[1673684314937,0.00453521,20926.0,20925.0,3.01204635]
[1673684316207,0.01883088,20926.0,20925.0,3.03917727]
[1673684316460,0.01883088,20926.0,20925.0,2.82567817]
[1673684317201,0.01883088,20926.0,20925.0,1.86931139]
[1673684317446,0.01883088,20926.0,20925.0,1.72827849]
[1673684318157,0.01883088,20926.0,20925.0,1.87057948]
[1673684318400,0.01883088,20926.0,20925.0,1.58927849]
[1673684318642,0.01883088,20926.0,20925.0,1.87057948]
[1673684319416,0.01883088,20926.0,20925.0,1.86931139]
[1673684319670,0.01883088,20926.0,20925.0,1.7270104]
[1673684320683,0.01883088,20926.0,20925.0,1.7270738]
[1673684321184,0.01883088,20926.0,20925.0,0.389]
[1673684321428,0.31534128,20926.0,20925.0,0.389]
[1673684321678,0.31534128,20926.0,20925.0,0.25]
[1673684322202,0.31634128,20926.0,20925.0,0.389]
[1673684322450,0.01983088,20926.0,20925.0,0.389]
[1673684322991,0.01983088,20926.0,20925.0,0.53130099]
[1673684324203,0.00553521,20926.0,20925.0,0.53130099]
[1673684324445,0.00553521,20926.0,20925.0,0.88716457]
[1673684324926,0.00553521,20926.0,20925.0,0.6024991]
[1673684325179,1.50553521,20926.0,20925.0,0.6024991]
[1673684325422,1.50553521,20926.0,20925.0,0.88716457]
[1673684326179,1.519833,20926.0,20925.0,0.6024991]
[1673684326432,1.519833,20926.0,20925.0,0.74526217]
[1673684326938,1.519833,20926.0,20925.0,0.6024991]
[1673684327680,1.519833,20926.0,20925.0,0.74534277]
[1673684328179,1.519833,20926.0,20925.0,0.74534427]
[1673684328426,1.519833,20926.0,20925.0,0.67366547]
[1673684329419,1.519833,20926.0,20925.0,1.20345916]
[1673684329656,1.519833,20926.0,20925.0,0.84762732]
[1673684329895,1.519833,20926.0,20925.0,2.35284513]
[1673684330149,1.519833,20926.0,20925.0,2.56562351]
[1673684330454,1.519833,20926.0,20925.0,1.8953246]
[1673684330678,1.519833,20926.0,20925.0,2.35291355]
[1673684331158,1.50553521,20926.0,20925.0,2.56563155]
[1673684331398,1.50553521,20926.0,20925.0,2.35291355]
[1673684331889,1.50553521,20926.0,20925.0,2.63891944]
[1673684332139,1.519833,20926.0,20925.0,0.67520748]
[1673684332385,1.70541825,20926.0,20925.0,0.74672771]
[1673684332636,1.70541825,20926.0,20925.0,0.74677964]
[1673684332867,1.83331825,20926.0,20925.0,0.74677964]
[1673684333376,1.83331825,20926.0,20925.0,0.74677813]
[1673684334603,1.83331825,20926.0,20925.0,0.74680655]
[1673684334849,1.83331825,20926.0,20925.0,0.60371628]
[1673684335117,1.83331825,20926.0,20925.0,0.74680594]
[1673684335408,1.647733,20926.0,20925.0,0.88972376]
[1673684335630,1.647733,20926.0,20925.0,1.03818808]
[1673684336368,1.647733,20926.0,20925.0,1.84965394]
[1673684336601,1.647733,20926.0,20925.0,2.06243232]
[1673684337094,1.647733,20926.0,20925.0,2.54222662]
[1673684337341,1.647733,20926.0,20925.0,2.46303137]
[1673684337342,1.519833,20926.0,20925.0,2.46303137]
[1673684337820,1.51976905,20926.0,20925.0,2.46303137]
[1673684338559,1.51976905,20926.0,20925.0,2.62601967]
[1673684340061,1.51976905,20926.0,20925.0,2.19902146]
[1673684340298,1.51976905,20926.0,20925.0,2.19896108]
[1673684341500,1.51976905,20926.0,20925.0,2.55671448]
[1673684342514,1.51976905,20926.0,20925.0,2.55677486]
[1673684342756,1.51976905,20926.0,20925.0,1.88685286]
[1673684343243,1.51976905,20926.0,20925.0,1.88686901]
[1673684343492,1.51976905,20926.0,20925.0,1.88680863]
[1673684343732,1.51976905,20926.0,20925.0,1.67409063]
[1673684343978,1.51976905,20926.0,20925.0,1.31633723]
[1673684344262,1.51976905,20926.0,20925.0,0.83844023]
[1673684344508,1.51976905,20926.0,20925.0,1.0531321]
[1673684344758,1.51976905,20926.0,20925.0,1.2658501]
[1673684345672,1.51976905,20926.0,20925.0,1.4375684]
[1673684345819,1.51976905,20926.0,20925.0,2.03588251]
[1673684346069,1.51976905,20926.0,20925.0,2.46288072]
[1673684346309,1.51964611,20926.0,20925.0,2.46288072]
[1673684346567,1.51964611,20926.0,20925.0,3.09553232]
[1673684346816,1.51964611,20926.0,20925.0,3.1343995]
[1673684347060,1.51964611,20926.0,20925.0,2.94008241]
[1673684347310,1.69676168,20926.0,20925.0,2.46288072]
[1673684347554,1.69676168,20926.0,20925.0,1.36602796]
[1673684347812,1.67440883,20926.0,20925.0,1.51105468]
[1673684348063,1.51964611,20926.0,20925.0,1.36803152]
[1673684348313,1.51964611,20926.0,20925.0,1.15330996]
[1673684348559,1.51964611,20926.0,20925.0,1.72377268]
[1673684349083,1.51964611,20926.0,20925.0,1.72383306]
[1673684349357,1.51964611,20926.0,20925.0,1.15330996]
[1673684349603,1.51964611,20926.0,20925.0,1.3679767]
[1673684349852,1.66071413,20926.0,20925.0,0.74698172]
[1673684351361,1.66071413,20926.0,20925.0,0.53231498]
[1673684351609,1.66071413,20926.0,20925.0,0.74698172]
[1673684352862,1.66071413,20926.0,20925.0,0.7470421]
[1673684353206,1.66071413,20926.0,20925.0,0.74698172]
[1673684353638,1.66071413,20926.0,20925.0,0.53231498]
[1673684354431,1.51964611,20926.0,20925.0,1.25378866]
[1673684354659,1.51964611,20926.0,20925.0,2.0358784]
[1673684354915,1.51964611,20926.0,20925.0,2.18512575]
[1673684355179,1.51964611,20926.0,20925.0,2.61212396]
[1673684355426,1.51964611,20926.0,20925.0,2.9400783]
[1673684355925,1.51964611,20926.0,20925.0,3.09579273]
[1673684356161,1.51964611,20926.0,20925.0,2.9424957]
[1673684356410,1.51964611,20926.0,20925.0,3.09131699]
[1673684356656,1.51964611,20926.0,20925.0,2.66190138]
[1673684358665,1.51964611,20926.0,20925.0,2.41190138]
[1673684361258,1.50534832,20926.0,20925.0,2.41190138]
[1673684362259,1.51927652,20926.0,20925.0,2.41190138]
[1673684362515,1.51927652,20926.0,20925.0,1.93469969]
[1673684363022,1.51927652,20926.0,20925.0,1.62262271]
[1673684363288,1.51927652,20926.0,20925.0,1.33640459]
[1673684364312,1.51927652,20926.0,20925.0,1.47952758]
[1673684364573,1.51927652,20926.0,20925.0,1.00163058]
[1673684364799,1.51927652,20926.0,20925.0,0.78891258]
[1673684365049,1.51927652,20926.0,20925.0,1.00163058]
[1673684365576,1.51927652,20926.0,20925.0,0.78695811]
[1673684365853,1.51927652,20926.0,20925.0,1.62262341]
[1673684366811,1.51927652,20926.0,20925.0,2.292485]
[1673684367063,1.51927652,20926.0,20925.0,1.33640459]
[1673684369076,1.51927652,20926.0,20925.0,2.29249147]
[1673684369323,1.51927652,20926.0,20925.0,1.93472317]
[1673684370314,1.51927652,20926.0,20925.0,2.29254702]
[1673684370565,1.51927652,20926.0,20925.0,1.93472317]
[1673684371064,1.51915657,20926.0,20925.0,1.93472317]
[1673684371307,1.51915657,20926.0,20925.0,1.33646829]
[1673684371828,1.51915657,20926.0,20925.0,1.62274304]
[1673684372839,1.51915657,20926.0,20925.0,1.33646829]
[1673684373092,1.51915657,20926.0,20925.0,2.29254801]
[1673684374083,1.51915657,20926.0,20925.0,2.29255205]
[1673684374600,1.51915657,20926.0,20925.0,1.93472005]
[1673684379855,1.51915657,20926.0,20925.0,2.29278842]
[1673684380627,1.51915657,20926.0,20925.0,1.33670466]
[1673684380867,1.51915657,20926.0,20925.0,2.08009436]
[1673684381118,1.51915657,20926.0,20925.0,2.29281236]
[1673684382081,1.51915657,20926.0,20925.0,2.29270214]
[1673684382322,1.51915657,20926.0,20925.0,1.93463377]
[1673684383577,1.51915657,20926.0,20925.0,2.36404938]
[1673684385762,1.51915657,20926.0,20925.0,2.08581248]
[1673684386002,1.51915657,20926.0,20925.0,2.2261693]
[1673684387003,1.51915657,20926.0,20925.0,2.85879692]
[1673684387500,1.51915657,20926.0,20925.0,1.9261693]
[1673684387746,1.51915657,20926.0,20925.0,1.92732278]
[1673684388043,1.51915657,20926.0,20925.0,2.3557598]
[1673684388783,1.51915657,20926.0,20925.0,2.35691328]
[1673684392245,1.51915657,20926.0,20925.0,2.20155646]
[1673684392489,1.51915657,20926.0,20925.0,2.35487682]
[1673684392972,1.51915657,20926.0,20925.0,1.92528632]
[1673684393973,1.51915657,20926.0,20925.0,2.35495174]
[1673684394224,1.51915657,20926.0,20925.0,1.92528632]
[1673684394711,1.51915657,20926.0,20925.0,2.35491204]
[1673684395203,1.51915657,20926.0,20925.0,1.92528632]
[1673684396492,1.51915657,20926.0,20925.0,2.3549093]
[1673684397491,1.51915657,20926.0,20925.0,2.35375582]
[1673684398829,1.51915657,20926.0,20925.0,1.92413284]
[1673684400336,1.51915657,20926.0,20925.0,2.35373921]
[1673684401065,1.51915657,20926.0,20925.0,2.35484362]
[1673684401825,1.51915657,20926.0,20925.0,2.35482368]
[1673684402317,1.51915657,20926.0,20925.0,2.35482526]
[1673684403069,1.51915657,20926.0,20925.0,1.92523725]
[1673684403313,1.51915657,20926.0,20925.0,2.59478891]
[1673684403562,1.51915657,20926.0,20925.0,2.64243894]
[1673684403811,1.51915657,20926.0,20925.0,3.07199425]
[1673684404300,1.51915657,20926.0,20925.0,2.64243894]
[1673684404562,1.51915657,20926.0,20925.0,2.94243894]
[1673684404805,1.51915657,20926.0,20925.0,2.64243894]
[1673684405303,1.51915657,20926.0,20925.0,2.48911858]
[1673684405558,1.51915657,20926.0,20925.0,3.4217462]
[1673684406548,1.51915657,20926.0,20925.0,3.56927009]
[1673684407040,1.51915657,20926.0,20925.0,2.93664247]
[1673684407291,1.51915657,20926.0,20925.0,3.56927009]
[1673684407800,1.51915657,20926.0,20925.0,3.4217462]
[1673684408550,1.51915657,20926.0,20925.0,3.31855996]